{"text_format":"1","workbook":"xlsx","n_sheets":1,"sheets":["Plánované odstávky"],"not_rendered":{"charts":0,"images":0,"macros":1,"external_links":0,"defined_names":0,"comments":1,"pivot_tables":0},"unopened":[],"bounds":{"document_bytes":16777216,"sheet_cells":100000,"rows_first":2000,"rows_last":500,"rows_between":2000,"halvings":0,"cell_chars":16384,"cell_head_chars":4096},"cells_cut":0,"cells_raw":0,"read":"whole","date_system":"1900"}

{"sheet":"Plánované odstávky","index":0,"n_rows":107,"n_cols":16,"rows_kept":107,"cut":false,"hidden":false,"merged":[[10,4,11,4],[1,0,1,5],[1,7,1,13],[3,0,3,13],[5,0,5,4],[6,0,6,3],[7,0,7,3],[8,0,8,3],[10,0,11,0],[10,1,11,1],[10,2,11,2],[10,3,11,3],[10,14,11,14],[10,15,11,15],[10,5,11,5],[10,6,11,6],[10,7,11,7],[10,8,10,9],[10,10,10,11],[10,12,10,13]]}
[]
["Plánované odstávky 2024",null,null,null,null,null,null,"Příloha č. 11 k vyhlášce č. 540/2005 Sb."]
[]
["Výkaz standardu dodržení plánovaného omezení nebo přerušení distribuce elektřiny"]
[]
["§6 Standard dodržení plánovaného omezení nebo přerušení\ndistribuce elektřiny"]
["počet přerušení celkem",null,null,null,6]
["z toho v limitu",null,null,null,6]
["z toho mimo limit",null,null,null,0]
[]
["ID provozovatele\nsoustavy","Označení\nudálosti","Typ\nudálosti","Úroveň\nnapětí / V","Počátek přerušení T0","Konec      přerušení   T3","Plánovaný začátek","Plánovaný konec","NN",null,"VN",null,"VVN",null,"Délka výpadku / minut","Důvod odstávky"]
[null,null,null,null,null,null,null,null,"nj","tj*nj","nj","tj*nj","nj","tj*nj"]
["1/2024",null,null,"400 V","2024-01-11T18:35:00","2024-01-11T21:14:00","2024-01-11T18:30:00","2024-01-11T22:00:00",null,null,null,null,null,null,{"$f":"F13-E13","v":0.11041666667006211},"Hangár F - vypnutí rozvaděče RH1 pro práce"]
["2/2024",null,null,"400V","2024-01-26T01:00:00","2024-01-26T02:20:00","2024-01-26T01:00:00","2024-01-26T04:00:00",null,null,null,null,null,null,{"$f":"F14-E14","v":5.5555555554747116E-2},"T1 MDB 1.2 - úprava rozvaděče"]
["3/2024",null,null,"400V","2024-03-20T02:03:00","2024-03-20T03:06:00","2024-03-20T02:00:00","2024-03-20T03:30:00",null,null,null,null,null,null,{"$f":"F15-E15","v":4.3749999997089617E-2},"T1 MDB 1.2 - úprava rozvaděče"]
["4/2024",null,null,"400V","2024-09-20T02:01:00","2024-09-20T02:40:00","2024-09-20T02:00:00","2024-09-20T03:00:00",null,null,null,null,null,null,2.7083333334303461E-2,"T1 MDB3 - úprava rozvaděče"]
["5/2024",null,null,"400V","2024-09-27T01:30:00","2024-09-27T03:11:00","2024-09-27T01:30:00","2024-09-27T03:30:00",null,null,null,null,null,null,7.013888889196096E-2,"T1 MDBE3 - úprava rozvaděče"]
["6/2024",null,null,"400V","2024-12-12T02:10:00","2024-12-12T03:54:00","2024-12-12T02:00:00","2024-12-12T04:00:00",null,null,null,null,null,null,7.2222222217533272E-2,"T1 TS42 MDBE2 - úprava rozvaděče"]
[null,null,null,null,null,null,null,null,null,null,null,null,null,null,0]
[null,null,null,null,null,null,null,null,null,null,null,null,null,null,0]
[null,null,null,null,null,null,null,null,null,null,null,null,null,null,{"$f":"F21-E21","v":0}]
[null,null,null,null,null,null,null,null,null,null,null,null,null,null,{"$f":"F22-E22","v":0}]
[null,null,null,null,null,null,null,null,null,null,null,null,null,null,0]
[null,null,null,null,null,null,null,null,null,null,null,null,null,null,0]
[null,null,null,null,null,null,null,null,null,null,null,null,null,null,0]
[null,null,null,null,null,null,null,null,null,null,null,null,null,null,0]
[null,null,null,null,null,null,null,null,null,null,null,null,null,null,0]
[null,null,null,null,null,null,null,null,null,null,null,null,null,null,0]
[null,null,null,null,null,null,null,null,null,null,null,null,null,null,0]
[null,null,null,null,null,null,null,null,null,null,null,null,null,null,0]
[null,null,null,null,null,null,null,null,null,null,null,null,null,null,0]
[null,null,null,null,null,null,null,null,null,null,null,null,null,null,0]
[null,null,null,null,null,null,null,null,null,null,null,null,null,null,0]
[null,null,null,null,null,null,null,null,null,null,null,null,null,null,0]
[null,null,null,null,null,null,null,null,null,null,null,null,null,null,0]
[null,null,null,null,null,null,null,null,null,null,null,null,null,null,0]
[null,null,null,null,null,null,null,null,null,null,null,null,null,null,0]
[null,null,null,null,null,null,null,null,null,null,null,null,null,null,0]
[null,null,null,null,null,null,null,null,null,null,null,null,null,null,0]
[null,null,null,null,null,null,null,null,null,null,null,null,null,null,0]
[null,null,null,null,null,null,null,null,null,null,null,null,null,null,0]
[null,null,null,null,null,null,null,null,null,null,null,null,null,null,0]
[null,null,null,null,null,null,null,null,null,null,null,null,null,null,0]
[null,null,null,null,null,null,null,null,null,null,null,null,null,null,0]
[null,null,null,null,null,null,null,null,null,null,null,null,null,null,0]
[null,null,null,null,null,null,null,null,null,null,null,null,null,null,0]
[null,null,null,null,null,null,null,null,null,null,null,null,null,null,0]
[null,null,null,null,null,null,null,null,null,null,null,null,null,null,0]
[null,null,null,null,null,null,null,null,null,null,null,null,null,null,0]
[null,null,null,null,null,null,null,null,null,null,null,null,null,null,0]
[null,null,null,null,null,null,null,null,null,null,null,null,null,null,0]
[null,null,null,null,null,null,null,null,null,null,null,null,null,null,0]
[null,null,null,null,null,null,null,null,null,null,null,null,null,null,0]
[null,null,null,null,null,null,null,null,null,null,null,null,null,null,0]
[null,null,null,null,null,null,null,null,null,null,null,null,null,null,0]
[null,null,null,null,null,null,null,null,null,null,null,null,null,null,0]
[null,null,null,null,null,null,null,null,null,null,null,null,null,null,0]
[null,null,null,null,null,null,null,null,null,null,null,null,null,null,0]
[null,null,null,null,null,null,null,null,null,null,null,null,null,null,0]
[null,null,null,null,null,null,null,null,null,null,null,null,null,null,0]
[null,null,null,null,null,null,null,null,null,null,null,null,null,null,0]
[null,null,null,null,null,null,null,null,null,null,null,null,null,null,0]
[null,null,null,null,null,null,null,null,null,null,null,null,null,null,0]
[null,null,null,null,null,null,null,null,null,null,null,null,null,null,0]
[null,null,null,null,null,null,null,null,null,null,null,null,null,null,0]
[null,null,null,null,null,null,null,null,null,null,null,null,null,null,0]
[null,null,null,null,null,null,null,null,null,null,null,null,null,null,0]
[null,null,null,null,null,null,null,null,null,null,null,null,null,null,{"$f":"F68-E68","v":0}]
[]
[]
[]
[]
[]
[]
[]
[]
[]
[]
[]
[]
[]
[]
[]
[]
[]
[]
[]
[]
[]
[]
[]
[]
[]
[]
[]
[]
[]
[]
[]
[]
[]
[]
[]
[]
[]
[]
[null,null,null,null,null,null,null,null,null,null,null,null,","]